bitfinex/quotes_SOLUSD_20220302
["timestamp","ask_amount","ask_price","bid_price","bid_amount"]
[1646208832033,28.7077,102.05,101.94,97.49]
[1646208832235,24.7857,102.05,101.94,97.49]
[1646208832434,24.7857,102.05,101.94,100.03904003]
[1646208832637,18.631,102.04,101.94,114.74924003]
[1646208833036,18.631,102.04,101.95,44.26374531]
[1646208833240,14.711,102.04,101.95,44.26374531]
[1646208833436,3.92,102.06,101.96,2.54904003]
[1646208833636,26.8825,102.09,101.96,14.08904003]
[1646208833840,22.9625,102.09,101.96,59.55644003]
[1646208834037,22.9625,102.09,101.97,2.54904003]
[1646208834241,14.7058,102.08,101.98,14.7052]
[1646208834443,18.6258,102.08,101.98,63.8193728]
[1646208834638,19.32824429,102.08,101.99,2.54904003]
[1646208834839,15.40824429,102.08,102.0,55.30860752]
[1646208836440,14.7107,102.04,101.96,45.4674]
[1646208836641,0.20723975,102.06,101.96,45.4674]
[1646208836845,11.54,102.05,101.92,26.1149]
[1646208837043,0.2622857,102.04,101.93,45.9545]
[1646208837242,11.54,102.05,101.93,45.9545]
[1646208837442,7.14156321,102.04,101.95,45.18407094]
[1646208837640,19.7113,102.04,101.95,45.18407094]
[1646208838642,5.0,102.04,101.95,45.18407094]
[1646208839244,1.58404636,102.12,101.96,147.54904003]
[1646208839444,1.58404636,102.12,101.98,0.11925617]
[1646208839648,13.12404636,102.12,101.98,0.11925617]
[1646208839845,6.41250837,102.09,101.98,46.75995167]
[1646208840065,3.92,102.09,102.0,53.44089017]
[1646208840245,3.92,102.09,102.0,68.14339017]
[1646208840451,47.3751,102.1,102.01,2.54904003]
[1646208841047,6.31738465,102.12,102.02,53.60393769]
[1646208841246,6.31738465,102.12,102.03,14.6985]
[1646208841247,3.919,102.12,102.03,14.6985]
[1646208841449,3.919,102.12,102.03,17.24754003]
[1646208841846,3.919,102.12,102.04,2.54904003]
[1646208842248,3.919,102.12,102.05,44.58444721]
[1646208842847,18.6197,102.12,102.05,44.58444721]
[1646208843047,30.1597,102.12,102.05,44.58444721]
[1646208843446,3.919,102.12,102.05,44.58444721]
[1646208843853,18.6198,102.12,102.02,2.54904003]
[1646208844047,26.2408,102.12,102.02,2.54904003]
[1646208844253,123.7308,102.12,102.02,2.54904003]
[1646208844851,123.7308,102.12,102.03,57.8556762]
[1646208846049,26.2408,102.12,102.03,57.8556762]
[1646208846252,11.54,102.12,102.03,60.40471623]
[1646208847252,109.03,102.12,102.03,60.40471623]
[1646208847453,26.2403,102.12,102.03,75.10351623]
[1646208847652,11.54,102.12,102.03,75.10351623]
[1646208847853,28.76983095,102.13,102.03,91.06010804]
[1646208848453,28.76983095,102.13,102.03,75.10351623]
[1646208849454,126.25983095,102.13,102.03,75.10351623]
[1646208849652,43.46873095,102.13,102.03,75.10351623]
[1646208849852,97.49,102.12,102.03,75.10351623]
[1646208850055,43.46873095,102.13,102.03,60.40471623]
[1646208850253,11.54,102.12,102.03,57.8556762]
[1646208850655,97.49,102.11,102.03,57.8556762]
[1646208850852,11.54,102.1,102.03,57.8556762]
[1646208851053,5.0,102.11,102.03,57.8556762]
[1646208851253,5.0,102.11,102.04,2.54904003]
[1646208851453,23.76983095,102.13,102.05,54.82755632]
[1646208852054,135.95833095,102.13,102.04,2.54904003]
[1646208852256,135.95833095,102.13,102.01,60.7533]
[1646208852257,97.49,102.11,102.01,51.76234003]
[1646208852455,109.03,102.11,102.01,51.76234003]
[1646208852665,109.03,102.11,102.01,49.2133]
[1646208853056,109.03,102.11,102.02,49.24659078]
[1646208854556,5.0,102.08,102.02,49.24659078]
[1646208856981,23.4267,102.11,102.02,63.94739078]
[1646208857181,23.4267,102.11,102.04,43.5753984]
[1646208857884,23.4267,102.11,102.04,141.0653984]
[1646208858181,19.10823095,102.13,102.04,155.7631984]
[1646208858586,15.19023095,102.13,102.04,155.7631984]
[1646208863191,112.68023095,102.13,102.04,58.2731984]
[1646208863393,0.27614514,102.12,102.04,43.5753984]
[1646208863790,14.701,102.11,102.04,43.5753984]
[1646208864392,36.54103095,102.13,102.04,43.5753984]
[1646208865391,41.54103095,102.13,102.04,43.5753984]
[1646208865792,36.54103095,102.13,102.04,141.0653984]
[1646208865993,51.24033095,102.13,102.04,155.7632984]
[1646208866192,39.70033095,102.13,102.04,155.7632984]
[1646208866794,39.70033095,102.13,102.04,58.2732984]
[1646208866993,40.10310025,102.13,102.04,58.2732984]
[1646208867194,39.70033095,102.13,102.04,58.2732984]
[1646208868896,25.00103095,102.13,102.04,58.2732984]
[1646208869097,0.49193095,102.13,102.05,2.54904003]
[1646208869299,0.49193095,102.13,102.06,14.6944]
[1646208869898,0.49193095,102.13,102.07,51.91963232]
[1646208870501,0.49193095,102.13,102.07,164.10313232]
[1646208871602,0.49193095,102.13,102.07,66.61313232]
[1646208872806,0.49193095,102.13,102.07,51.91963232]
[1646208873209,97.98193095,102.13,102.07,51.91963232]
[1646208873505,14.7029,102.11,102.01,14.4254]
[1646208873707,11.54,102.1,102.0,108.8821]
[1646208873904,18.1756109,102.1,101.99,47.525]
[1646208874104,97.49,102.09,101.99,47.525]
[1646208874305,0.2816109,102.07,101.99,47.525]
[1646208874605,8.70304436,102.07,102.0,51.28925309]
[1646208875107,15.44167263,102.05,102.0,51.28925309]
[1646208875304,15.44167263,102.05,101.97,14.7073]
[1646208875606,15.44167263,102.05,101.95,86.8713255]
[1646208875808,0.2816109,102.04,101.95,86.8713255]
[1646208876006,14.7096,102.05,101.95,86.8713255]
[1646208876806,14.7096,102.05,101.96,64.70296504]
[1646208877006,14.7109,102.04,101.96,64.70296504]
[1646208877205,14.7109,102.04,101.96,67.25200507]
[1646208878206,112.2009,102.04,101.96,67.25200507]
[1646208878409,112.2009,102.04,101.96,49.99406504]
[1646208878410,14.7122,102.03,101.96,49.99406504]
[1646208880306,112.2035,102.02,101.96,49.99406504]
[1646208880506,104.114,102.02,101.96,49.99406504]
[1646208880706,18.164,102.02,101.96,49.99406504]
[1646208881507,26.2542,102.02,101.96,49.99406504]
[1646208881706,3.92,102.04,101.96,49.99406504]
[1646208881707,28.8961,102.04,101.96,49.99406504]
[1646208882105,36.5161,102.04,101.96,49.99406504]
[1646208882506,36.5161,102.04,101.96,52.54310507]
[1646208883107,36.5161,102.04,101.96,49.99406504]
[1646208883307,14.7122,102.03,101.96,49.99406504]
[1646208884007,40.4361,102.04,101.96,49.99406504]
[1646208884408,142.9261,102.04,101.96,49.99406504]
[1646208884609,40.4361,102.04,101.96,49.99406504]
[1646208884811,14.7137,102.02,101.96,49.99406504]
[1646208885508,24.9761,102.04,101.96,49.99406504]
[1646208885710,39.6875,102.04,101.96,49.99406504]
[1646208886717,28.0344,102.05,101.96,49.99406504]
[1646208886718,5.0,102.05,101.96,164.74240507]
[1646208886913,5.0,102.05,101.96,172.65640507]
[1646208887213,3.92,102.09,101.98,97.49]
[1646208887412,3.92,102.09,101.98,109.03]
[1646208887615,3.92,102.09,101.99,2.54904003]
[1646208887815,2.62769944,102.09,102.0,57.78148815]
[1646208888015,118.74149944,102.09,102.0,57.78148815]
[1646208888215,21.25149944,102.09,102.0,57.78148815]
[1646208888625,130.28149944,102.09,102.0,57.78148815]
[1646208889641,127.6538,102.09,102.0,57.78148815]
[1646208890141,30.1638,102.09,102.0,57.78148815]
[1646208890340,127.6538,102.09,102.0,57.78148815]
[1646208890541,187.51738102,102.09,102.0,57.78148815]
[1646208890741,2.60421146,102.08,102.0,57.78148815]
[1646208890943,0.40590553,102.05,102.0,57.78148815]
[1646208891542,109.03,102.06,102.0,57.78148815]
[1646208892144,14.7107,102.05,102.0,57.78148815]
[1646208892743,11.54,102.06,102.0,57.78148815]
[1646208893146,26.2487,102.06,102.0,57.78148815]
[1646208893545,11.54,102.06,102.0,57.78148815]
[1646208893749,23.1223,102.08,102.0,57.78148815]
[1646208894548,0.88922235,102.07,102.0,57.78148815]
[1646208896148,14.7089,102.06,102.0,57.78148815]
[1646208898051,37.8289,102.08,102.0,57.78148815]
[1646208898450,0.90196129,102.07,102.0,57.78148815]
[1646208899055,23.1223,102.08,102.0,57.78148815]
[1646208899654,34.6623,102.08,102.0,57.78148815]
[1646208900054,14.7072,102.07,102.0,57.78148815]
[1646208903358,23.1223,102.08,102.0,57.78148815]
[1646208905057,37.828,102.08,102.0,57.78148815]
[1646208907659,23.1223,102.08,102.0,75.03432818]
[1646208907862,46.3913,102.1,102.0,75.03432818]
[1646208908064,27.7675,102.1,102.0,219.50131481]
[1646208908260,27.7675,102.1,102.0,231.04131481]
[1646208908864,22.7675,102.1,102.0,263.89861902]
[1646208909265,38.0194,102.12,102.0,263.89861902]
[1646208909462,23.3183,102.12,102.0,263.89861902]
[1646208910063,23.3183,102.12,102.0,265.85527361]
[1646208910562,0.49193095,102.13,102.0,265.85527361]
[1646208910768,0.49193095,102.13,102.05,14.6965]
[1646208911164,0.49193095,102.13,102.06,2.54904003]
[1646208911867,0.49193095,102.13,102.07,54.97198241]
[1646208912466,0.49193095,102.13,102.09,52.59070827]
[1646208913272,15.19023095,102.13,102.09,52.59070827]
[1646208913480,0.49193095,102.13,102.09,52.59070827]
[1646208915597,0.49193095,102.13,102.1,2.54904003]
[1646208915796,0.49193095,102.13,102.11,3.03219997]
[1646208916198,0.49193095,102.13,102.11,5.58124]
[1646208916396,0.49193095,102.13,102.12,58.85782682]
[1646208917196,22.9791,102.17,102.12,58.85782682]
[1646208917396,8.916,102.2,102.12,58.85782682]
[1646208917696,8.916,102.2,102.12,61.40686685]
[1646208917896,5.0,102.2,102.12,61.40686685]
[1646208918098,3.915,102.21,102.12,158.89686685]
[1646208918297,5.24907804,102.24,102.12,170.43686685]
[1646208918499,3.914,102.26,102.12,192.20096518]
[1646208918698,14.6823,102.25,102.16,14.6803]
[1646208918897,14.6823,102.25,102.16,112.1703]
[1646208919097,5.24607804,102.27,102.17,55.02477029]
[1646208919308,5.0,102.25,102.17,152.51477029]
[1646208919596,24.5558,102.28,102.18,2.54904003]
[1646208919798,14.6792,102.27,102.18,2.54904003]
[1646208919996,3.912,102.26,102.16,11.54]
[1646208920199,19.92031431,102.26,102.12,24.4002]
[1646208920400,57.264,102.25,102.1,46.3145]
[1646208920599,0.24736062,102.23,102.1,57.8545]
[1646208920802,0.24736062,102.23,102.1,155.3445]
[1646208920998,14.93516062,102.23,102.11,156.43789794]
[1646208921198,14.6878,102.23,102.12,11.54]
[1646208921399,14.6878,102.23,102.12,154.47584527]
[1646208922001,14.6878,102.23,102.14,97.49]
[1646208922198,14.6878,102.23,102.13,55.42511553]
[1646208923000,14.6878,102.23,102.14,14.6831]
[1646208923199,14.6878,102.23,102.15,49.24972243]
[1646208923599,112.1778,102.23,102.15,49.24972243]
[1646208924300,14.6878,102.23,102.15,49.24972243]
[1646208924703,45.724,102.25,102.15,49.24972243]
[1646208925103,146.30397137,102.25,102.15,49.24972243]
[1646208925603,45.724,102.25,102.15,49.24972243]
[1646208925804,14.6816,102.24,102.15,161.42162243]
[1646208926205,14.6816,102.24,102.15,63.93162243]
[1646208928908,14.6792,102.26,102.15,63.93162243]
[1646208929309,14.6792,102.26,102.15,75.47162243]
[1646208929512,116.0812,102.26,102.15,63.93162243]
[1646208929708,116.0812,102.26,102.15,49.24972243]
[1646208929908,3.43737846,102.25,102.15,49.24972243]
[1646208930208,14.6838,102.23,102.15,49.24972243]
[1646208930809,120.7008,102.23,102.15,49.24972243]
[1646208931011,183.21029935,102.23,102.15,49.24972243]
[1646208931212,112.1799,102.2,102.15,49.24972243]
[1646208931709,14.6899,102.2,102.15,49.24972243]
[1646208932911,112.1799,102.2,102.11,62.4195]
[1646208933111,112.1799,102.2,102.08,200.3662]
[1646208933311,14.6899,102.2,102.09,151.92482273]
[1646208933712,14.6899,102.2,102.09,154.47386276]
[1646208933912,14.6899,102.2,102.1,50.48761831]
[1646208934515,112.1799,102.2,102.1,50.48761831]
[1646208934721,112.1799,102.2,102.1,65.17611831]
[1646208935117,123.7199,102.2,102.1,65.17611831]
[1646208935415,123.7199,102.2,102.1,50.48761831]
[1646208935817,26.2299,102.2,102.1,65.17721831]
[1646208936017,35.1449,102.2,102.1,65.17721831]
[1646208936220,30.1449,102.2,102.1,65.17721831]
[1646208936719,35.1449,102.2,102.1,65.17721831]
[1646208936923,19.1899,102.2,102.1,65.17721831]
[1646208937117,14.1899,102.2,102.1,65.17721831]
[1646208937523,97.49,102.19,102.1,65.17721831]
[1646208937721,14.1899,102.2,102.1,65.17721831]
[1646208937919,18.1049,102.2,102.1,65.17721831]
[1646208938424,14.1899,102.2,102.1,65.17721831]
[1646208939421,111.6799,102.2,102.1,65.17721831]
[1646208941922,14.1899,102.2,102.1,162.66721831]
[1646208942124,3.915,102.21,102.1,162.66721831]
[1646208942328,42.4641,102.22,102.1,202.8967358]
[1646208942524,38.5491,102.22,102.12,43.68249712]
[1646208942824,38.5491,102.22,102.14,56.87849591]
[1646208944327,136.0391,102.22,102.14,56.87849591]
[1646208944525,136.0391,102.22,102.11,38.10963027]
[1646208944725,136.0391,102.22,102.11,24.361]
[1646208944726,149.31737813,102.22,102.11,24.361]
[1646208944929,3.915,102.21,102.11,24.361]
[1646208945135,30.1424,102.21,102.11,39.0487]
[1646208945529,30.1424,102.21,102.12,43.97658326]
[1646208946327,127.6324,102.21,102.12,43.97658326]
[1646208947127,30.1424,102.21,102.12,43.97658326]
[1646208950037,14.6874,102.21,102.12,58.66328326]
[1646208962362,14.6874,102.21,102.12,62.57828326]
[1646208963065,14.6874,102.21,102.12,58.66328326]
[1646208964368,112.1774,102.21,102.12,58.66328326]
[1646208964567,112.1774,102.21,102.12,43.97658326]
[1646208964767,26.2274,102.21,102.12,43.97658326]
[1646208965166,14.6874,102.21,102.12,43.97658326]
[1646208965567,30.19767804,102.22,102.12,58.66308326]
[1646208965766,23.8636,102.22,102.12,58.66308326]
[1646208965965,23.8636,102.22,102.12,156.15308326]
[1646208966467,1.33407804,102.23,102.12,156.15308326]
[1646208966667,1.33407804,102.23,102.12,193.00736004]
[1646208966870,52.05967804,102.24,102.14,151.37836664]
[1646208967066,66.74227804,102.24,102.15,14.6812]
[1646208967265,66.74227804,102.24,102.16,50.17678024]
[1646208968167,37.7725,102.24,102.16,64.85758024]
[1646208969168,37.7725,102.24,102.15,23.5043]
[1646208969369,97.49,102.23,102.15,23.5043]
[1646208969569,14.687,102.21,102.12,23.1772]
[1646208969768,28.33797804,102.24,102.12,47.2706]
[1646208969971,28.33797804,102.24,102.13,3.914]
[1646208969972,24.42397804,102.24,102.13,3.914]
[1646208970577,24.42397804,102.24,102.13,101.404]
[1646208970974,37.7717,102.24,102.16,14.6811]
[1646208971173,37.7717,102.24,102.17,59.53900035]
[1646208972072,39.10577804,102.24,102.17,59.53900035]
[1646208972273,37.7717,102.24,102.17,59.53900035]
[1646208972778,5.24607804,102.25,102.17,74.21840035]
[1646208972982,1.33407804,102.26,102.17,178.16440035]
[1646208973182,1.33407804,102.28,102.18,2.54904003]
[1646208973378,1.33407804,102.28,102.18,122.77464003]
[1646208973780,1.33407804,102.28,102.19,150.49918443]
[1646208973979,1.33407804,102.28,102.2,112.1645]
[1646208974180,72.4808,102.3,102.2,123.63254003]
[1646208974379,6.75607804,102.31,102.21,2.54904003]
[1646208974581,2.84407804,102.31,102.23,97.49]
[1646208974781,1.51,102.31,102.23,103.332]
[1646208975080,1.51,102.31,102.24,42.71131489]
[1646208975281,1.51,102.31,102.24,154.86931489]
[1646208975481,5.0,102.32,102.25,210.03904003]
[1646208975880,5.0,102.32,102.26,2.54904003]
[1646208976080,1.33407804,102.37,102.26,118.71004003]
[1646208976280,4.24392231,102.37,102.28,49.92535411]
[1646208976482,1.33407804,102.37,102.29,14.6616]
[1646208976682,1.33407804,102.37,102.29,21.0996]
[1646208976881,30.10167804,102.38,102.29,121.13864003]
[1646208977081,5.0,102.38,102.3,2.54904003]
[1646208977481,5.0,102.38,102.31,60.21141907]
[1646208978083,38.4262,102.41,102.32,14.6568]
[1646208978287,23.7676,102.41,102.32,20.9448]
[1646208978484,23.7676,102.41,102.32,23.49384003]
[1646208978888,23.7676,102.41,102.33,59.2846188]
[1646208979085,23.7676,102.41,102.33,73.9400188]
[1646208979285,5.0,102.42,102.33,73.9400188]
[1646208979485,5.0,102.42,102.33,76.48905883]
[1646208979789,3.907,102.44,102.34,11.54]
[1646208979991,3.906,102.45,102.35,46.62623828]
[1646208980190,4.3963239,102.47,102.35,153.25627831]
[1646208980391,0.4903239,102.47,102.36,11.54]
[1646208980586,5.0,102.45,102.37,14.6454]
[1646208980790,5.0,102.45,102.37,17.19444003]
[1646208980989,5.0,102.45,102.38,11.54]
[1646208981188,5.0,102.45,102.38,20.32304003]
[1646208981387,5.0,102.45,102.39,57.23169276]
[1646208981986,0.4903239,102.47,102.39,57.23169276]
[1646208982186,0.4903239,102.47,102.39,64.95969276]
[1646208982990,0.4903239,102.47,102.39,86.05943279]
[1646208983192,0.4903239,102.47,102.39,97.59943279]
[1646208983792,5.0,102.49,102.4,35.0]
[1646208983994,17.50544847,102.54,102.44,14.6378]
[1646208984195,62.92282975,102.55,102.44,23.6438]
[1646208984392,48.28322975,102.55,102.45,47.77209832]
[1646208984592,46.9361,102.55,102.45,50.32113835]
[1646208984792,46.9361,102.55,102.45,54.22313835]
[1646208984995,5.0,102.55,102.45,65.76313835]
[1646208985195,5.0,102.55,102.46,2.54904003]
[1646208985399,5.0,102.55,102.47,61.29184849]
[1646208985594,26.1714,102.61,102.47,69.33284849]
[1646208985794,1.51386987,102.62,102.48,2.54904003]
[1646208985795,0.2,102.62,102.48,2.54904003]
[1646208985999,0.2,102.62,102.49,11.54]
[1646208986199,0.2,102.62,102.49,155.74]
[1646208986401,0.2,102.62,102.5,30.09324854]
[1646208986598,0.2,102.62,102.5,214.27516899]
[1646208986800,0.2,102.62,102.51,39.4524153]
[1646208987003,0.2,102.62,102.52,18.5224]
[1646208987200,0.2,102.62,102.53,70.761]
[1646208987400,3.899,102.7,102.54,3.899]
[1646208987602,3.899,102.7,102.55,11.54]
[1646208987804,33.05601741,102.69,102.57,46.29560823]
[1646208988009,3.896,102.68,102.57,46.29560823]
[1646208988205,6.23588085,102.67,102.57,57.83560823]
[1646208988405,3.896,102.66,102.57,11.54]
[1646208988606,3.896,102.66,102.54,2.54904003]
[1646208988607,11.54050883,102.67,102.54,6.44704003]
[1646208988803,47.51933515,102.66,102.54,15.438]
[1646208989004,77.65524812,102.66,102.52,89.1178]
[1646208989205,6.34331409,102.65,102.52,11.54]
[1646208989407,31.59129099,102.64,102.53,54.49077201]
[1646208989605,3.899,102.63,102.5,11.67860851]
[1646208989904,66.66870461,102.63,102.5,11.67860851]
[1646208990126,31.0403064,102.62,102.5,11.54]
[1646208990527,45.5533634,102.61,102.5,11.54]
[1646208990727,169.76431855,102.61,102.48,15.44]
[1646208990929,98.96379969,102.59,102.44,38.2757]
[1646208991127,42.38786132,102.6,102.44,26.7357]
[1646208991128,98.84688493,102.57,102.44,26.7357]
[1646208991326,114.41926605,102.56,102.44,22.8357]
[1646208991526,31.59129099,102.55,102.45,53.40821666]
[1646208991726,44.86588436,102.55,102.44,22.8357]
[1646208991926,44.86588436,102.55,102.43,3.902]
[1646208991927,2.70178126,102.54,102.43,3.902]
[1646208992128,11.54,102.53,102.41,3.903]
[1646208992326,15.33794143,102.53,102.41,3.903]
[1646208992729,6.23588085,102.52,102.42,59.69729697]
[1646208993126,6.23588085,102.52,102.43,2.54904003]
[1646208993326,6.23588085,102.52,102.44,42.71859554]
[1646208993730,5.0,102.54,102.46,43.66647904]
[1646208994533,14.641,102.56,102.46,43.66647904]
[1646208994733,58.00512424,102.56,102.46,43.66647904]
[1646208994931,31.82412424,102.56,102.46,70.07367343]
[1646208995131,31.82412424,102.56,102.46,76.55167343]
[1646208995429,31.82412424,102.56,102.46,52.69351907]
[1646208995731,31.82412424,102.56,102.46,46.21551907]
[1646208995934,26.82412424,102.56,102.46,43.66647904]
[1646208996132,26.82412424,102.56,102.46,46.21551907]
[1646208996729,3.902,102.58,102.46,46.21551907]
[1646208996930,121.49880183,102.6,102.46,57.75551907]
[1646208997130,3.9,102.59,102.46,63.44351907]
[1646208997329,3.9,102.59,102.46,87.30167343]
[1646208997532,112.4648,102.6,102.46,184.79167343]
[1646208997831,33.11609774,102.59,102.46,184.79167343]
[1646208998031,5.0,102.59,102.46,214.13781515]
[1646208998234,5.0,102.59,102.46,116.64781515]
[1646208998431,5.0,102.59,102.46,96.32791515]
[1646208998632,5.0,102.59,102.46,72.46976079]
[1646208998836,24.2115706,102.59,102.46,43.66647904]
[1646208999132,33.59668722,102.58,102.46,43.66647904]
[1646208999332,18.54167174,102.59,102.46,55.20647904]
[1646208999532,14.6356,102.59,102.47,100.03904003]
[1646208999732,0.8,102.58,102.47,111.57904003]
[1646208999934,0.8,102.58,102.48,2.54904003]
[1646209000133,0.8,102.58,102.48,111.57904003]
[1646209000333,0.8,102.58,102.49,44.70942643]
[1646209000334,30.3405794,102.57,102.49,44.70942643]
[1646209000539,0.8,102.58,102.49,47.25846646]
[1646209000734,5.0,102.59,102.49,144.74846646]
[1646209000935,5.0,102.59,102.5,2.54904003]
[1646209001539,5.0,102.59,102.51,140.98638203]
[1646209001736,5.0,102.59,102.51,147.10738203]
[1646209001936,5.0,102.59,102.52,2.54904003]
[1646209002138,22.6128,102.63,102.52,135.43719439]
[1646209002335,23.2525,102.65,102.52,150.15143611]
[1646209002536,24.96479925,102.65,102.53,2.54904003]
[1646209002738,34.27472699,102.64,102.54,55.80596359]
[1646209002936,43.17372699,102.64,102.54,55.80596359]
[1646209003237,38.17372699,102.64,102.55,2.54904003]
[1646209003436,34.27472699,102.64,102.56,52.71686457]
[1646209004137,23.2525,102.65,102.56,55.2659046]
[1646209004336,3.898,102.66,102.56,55.2659046]
[1646209004739,5.0,102.64,102.56,55.2659046]
[1646209004938,45.8661,102.67,102.56,152.7559046]
[1646209005138,45.8661,102.67,102.56,164.2959046]
[1646209005337,45.8661,102.67,102.56,188.15405896]
[1646209005538,5.14103743,102.66,102.56,188.15405896]
[1646209005737,45.8661,102.67,102.56,188.15405896]
[1646209006043,18.5184,102.69,102.56,217.48760068]
[1646209006239,14.6204,102.69,102.56,217.48760068]
[1646209006440,39.8372,102.71,102.56,217.48760068]
[1646209006638,5.0,102.7,102.56,242.19318797]
[1646209007037,62.36758477,102.71,102.56,242.19318797]
[1646209007238,58.47158477,102.71,102.56,242.19318797]
[1646209008038,73.08898477,102.71,102.56,242.19318797]
[1646209008439,5.0,102.7,102.56,242.19318797]
[1646209008837,73.08898477,102.71,102.56,242.19318797]
[1646209009041,14.6174,102.71,102.56,300.70318797]
[1646209009238,14.6174,102.71,102.56,302.72589293]
[1646209009740,46.5908,102.72,102.56,302.72589293]
[1646209009939,23.1055,102.72,102.56,451.92589293]
[1646209010139,54.90413475,102.72,102.56,451.92589293]
[1646209010338,24.12346017,102.74,102.56,249.21589293]
[1646209010539,3.896,102.75,102.62,14.6089]
[1646209010739,3.895,102.76,102.63,11.54]
[1646209010940,3.895,102.76,102.63,14.08904003]
[1646209011140,3.895,102.76,102.64,2.54904003]
[1646209011341,30.09770218,102.75,102.66,43.04219356]
[1646209013647,31.82670654,102.75,102.66,43.04219356]
[1646209013848,36.82670654,102.75,102.66,43.04219356]
[1646209014050,51.43830654,102.75,102.66,43.04219356]
[1646209014251,44.70930218,102.75,102.66,43.04219356]
[1646209016954,46.22821794,102.75,102.66,43.04219356]
[1646209017556,44.70930218,102.75,102.66,43.04219356]
[1646209017854,51.28003584,102.75,102.66,43.04219356]
[1646209018256,51.28003584,102.75,102.63,11.54]
[1646209018457,51.28003584,102.75,102.62,14.08904003]
[1646209018855,160.31003584,102.75,102.62,14.08904003]
[1646209019057,62.82003584,102.75,102.62,2.54904003]
[1646209019355,14.6188,102.71,102.63,55.35037231]
[1646209019554,22.00222879,102.74,102.63,55.35037231]
[1646209019755,18.10722879,102.74,102.64,17.98404003]
[1646209019955,28.2967,102.78,102.64,20.30960914]
[1646209020154,28.2967,102.78,102.65,2.54904003]
[1646209020355,32.1907,102.78,102.65,14.08904003]
[1646209020558,14.6097,102.76,102.66,44.92474263]
[1646209020754,5.28624922,102.75,102.66,47.47378266]
[1646209020956,5.28624922,102.75,102.66,44.92474263]
[1646209021354,102.77624922,102.75,102.66,44.92474263]
[1646209021559,5.28624922,102.75,102.66,44.92474263]
[1646209021860,85.85548672,102.74,102.62,3.894]
[1646209022058,101.56413589,102.73,102.59,24.2727]
[1646209022255,97.49,102.71,102.59,26.82174003]
[1646209022456,109.03,102.71,102.59,26.82174003]
[1646209022857,32.54092262,102.7,102.6,43.0031657]
[1646209023060,24.2767,102.78,102.61,111.39683009]
[1646209023061,5.0,102.76,102.61,111.39683009]
[1646209023259,131.51543931,102.78,102.61,156.9969]
[1646209023457,131.51543931,102.78,102.61,181.65160396]
[1646209023656,131.51543931,102.78,102.62,31.09874399]
[1646209023877,143.05543931,102.78,102.63,11.54]
[1646209024060,89.34405262,102.77,102.64,54.03125733]
[1646209024259,8.18539067,102.74,102.64,64.74615733]
[1646209024458,105.17539067,102.74,102.64,67.29519736]
[1646209025059,105.17539067,102.74,102.64,50.13725733]
[1646209025259,119.78829067,102.74,102.64,50.13725733]
[1646209025458,22.29829067,102.74,102.64,50.13725733]
[1646209026360,22.29829067,102.74,102.64,54.03225733]
[1646209026958,7.68539067,102.74,102.64,68.64335733]
[1646209027159,7.68539067,102.74,102.64,80.18335733]
[1646209027557,7.68539067,102.74,102.64,76.28835733]
[1646209028965,7.68539067,102.74,102.64,78.83739736]
[1646209030366,14.6107,102.75,102.64,78.83739736]
[1646209030769,28.8458,102.76,102.64,78.83739736]
[1646209030969,28.8458,102.76,102.64,183.57939736]
[1646209031173,23.8458,102.76,102.68,14.6059]
[1646209031388,36.15420793,102.76,102.69,0.67850295]
[1646209031591,36.15420793,102.76,102.69,0.55646507]
[1646209032188,36.15420793,102.76,102.65,111.9416]
[1646209032189,192.15420793,102.76,102.65,15.434]
[1646209032387,2.4334248,102.75,102.63,5.0]
[1646209032587,18.9734248,102.75,102.63,5.0]
[1646209032786,18.9734248,102.75,102.63,8.895]
[1646209032787,11.54,102.75,102.63,8.895]
[1646209033187,1.29500179,102.74,102.64,51.59013465]
[1646209033388,15.90720179,102.74,102.64,51.59013465]
[1646209033687,18.34062659,102.74,102.64,51.59013465]
[1646209033887,15.90720179,102.74,102.64,51.59013465]
[1646209035088,15.90720179,102.74,102.64,66.20173465]
[1646209036391,14.6122,102.74,102.64,66.20173465]
[1646209036591,31.1489,102.76,102.64,66.20173465]
[1646209036789,31.1489,102.76,102.64,71.79973465]
[1646209036995,16.54,102.76,102.65,97.49]